bitfinex-derivatives/quotes_BTCF0:USTF0_20250919
["timestamp","ask_amount","ask_price","bid_price","bid_amount"]
[1758249702866,0.011,117250.0,117240.0,2.26945616]
[1758249703064,0.0057919,117250.0,117240.0,2.26945616]
[1758249704468,0.0057919,117250.0,117240.0,2.27045616]
[1758249705064,0.0057919,117250.0,117240.0,2.26945616]
[1758249705458,0.0057919,117250.0,117240.0,2.27245616]
[1758249706158,0.0057919,117250.0,117240.0,2.37975849]
[1758249706562,0.19286,117260.0,117250.0,0.87153812]
[1758249706761,0.19286,117260.0,117250.0,2.23946039]
[1758249706762,0.19276,117260.0,117250.0,2.23946039]
[1758249707265,0.19276,117260.0,117250.0,2.13233812]
[1758249708164,0.19276,117260.0,117250.0,2.24042282]
[1758249708666,0.19276,117260.0,117250.0,2.24142282]
[1758249710167,0.19276,117260.0,117250.0,2.13433812]
[1758249712359,0.0195775,117270.0,117260.0,0.0988562]
[1758249712561,0.0194775,117270.0,117260.0,2.06333082]
[1758249713665,0.0204775,117270.0,117260.0,2.06333082]
[1758249722171,0.0204775,117270.0,117260.0,1.97809462]
[1758249722362,0.0204775,117270.0,117260.0,2.06333082]
[1758249727476,0.0204775,117270.0,117260.0,1.3129362]
[1758249727668,0.001,117270.0,117260.0,2.06333082]
[1758249728364,0.001,117270.0,117260.0,2.08060164]
[1758249728568,0.51393154,117270.0,117260.0,1.99536544]
[1758249728767,0.2638,117270.0,117260.0,1.99536544]
[1758249730676,0.251,117270.0,117260.0,1.99536544]
[1758249735779,0.251,117270.0,117260.0,1.91148664]
[1758249736879,0.251,117270.0,117260.0,1.24497082]
[1758249737080,0.251,117270.0,117260.0,1.91148664]
[1758249744889,0.001,117270.0,117260.0,1.57822873]
[1758249745082,0.63766818,117270.0,117260.0,0.92408]
[1758249745282,0.97092609,117270.0,117260.0,0.3608]
[1758249745487,0.63766818,117270.0,117260.0,0.3608]
[1758249745684,0.97092609,117270.0,117250.0,0.4678847]
[1758249745890,1.47390582,117260.0,117250.0,0.4678847]
[1758249746079,1.47390582,117260.0,117250.0,0.3608]
[1758249747182,1.47390582,117260.0,117250.0,0.3618]
[1758249752799,1.72390582,117260.0,117250.0,0.3618]
[1758249752999,1.72390582,117260.0,117250.0,0.001]
[1758249754696,2.08474582,117260.0,117250.0,0.001]
[1758249755002,1.31218582,117260.0,117250.0,0.001]
[1758249755194,2.08574582,117260.0,117250.0,0.001]
[1758249755394,0.01274,117250.0,117240.0,0.3608]
[1758249755594,0.70038582,117250.0,117240.0,0.3608]
[1758249755903,1.47394582,117250.0,117240.0,0.3608]
[1758249756699,1.47394582,117250.0,117240.0,0.3618]
[1758249757301,1.47398582,117250.0,117240.0,0.3618]
[1758249758304,1.48267774,117250.0,117240.0,0.3618]
[1758249758606,1.48367774,117250.0,117240.0,0.3618]
[1758249759105,1.48367774,117250.0,117240.0,0.3608]
[1758249761110,0.70138582,117250.0,117240.0,0.3608]
[1758249761309,1.14176791,117250.0,117240.0,0.3608]
[1758249761496,0.36812791,117250.0,117240.0,0.3608]
[1758249761701,1.14176791,117250.0,117240.0,0.3608]
[1758249762708,1.15008181,117250.0,117240.0,0.3608]
[1758249763506,0.03387,117230.0,117220.0,0.38235]
[1758249763710,1.14076791,117230.0,117220.0,1.24235]
[1758249764803,0.80751,117230.0,117220.0,1.24335]
[1758249765006,1.14076791,117230.0,117220.0,1.24335]
[1758249765201,0.36712791,117230.0,117220.0,1.24335]
[1758249765407,1.14076791,117230.0,117220.0,1.24535]
[1758249766202,0.36712791,117230.0,117220.0,1.24535]
[1758249766398,1.14076791,117230.0,117220.0,1.24535]
[1758249767602,1.14076791,117230.0,117220.0,0.94535]
[1758249769801,1.14080791,117230.0,117220.0,0.94535]
[1758249769999,0.36712791,117230.0,117220.0,0.94535]
[1758249770219,1.14080791,117230.0,117220.0,0.94535]
[1758249770405,1.14080791,117230.0,117220.0,0.94335]
[1758249774210,0.36712791,117230.0,117220.0,0.94335]
[1758249774418,0.80755,117230.0,117220.0,0.94335]
[1758249774600,1.14080791,117230.0,117220.0,0.94335]
[1758249775505,1.14084791,117230.0,117220.0,0.94335]
[1758249775705,0.36712791,117230.0,117220.0,0.94335]
[1758249775905,1.14080791,117230.0,117220.0,0.94335]
[1758249776107,1.47406582,117230.0,117220.0,0.3918]
[1758249776311,0.36712791,117230.0,117220.0,0.3918]
[1758249776511,1.14084791,117230.0,117220.0,0.3918]
[1758249780121,1.14084791,117230.0,117220.0,0.3908]
[1758249780517,1.47410582,117230.0,117220.0,0.3608]
[1758249780710,1.47410582,117230.0,117210.0,0.3781324]
[1758249780711,0.01383,117220.0,117210.0,0.3781324]
[1758249780915,0.03691,117220.0,117210.0,0.9091524]
[1758249781112,0.70342582,117220.0,117210.0,0.9091524]
[1758249781618,0.72333433,117220.0,117210.0,0.4908]
[1758249782821,0.72333433,117220.0,117210.0,0.4918]
[1758249785721,0.97333433,117220.0,117210.0,0.4918]
[1758249785924,0.97333433,117220.0,117210.0,0.001]
[1758249785925,2.10789433,117220.0,117210.0,0.001]
[1758249786226,2.10821433,117220.0,117210.0,0.001]
[1758249793218,2.44147224,117220.0,117210.0,0.001]
[1758249793529,2.46505296,117220.0,117210.0,0.001]
[1758249794023,2.46513296,117220.0,117210.0,0.001]
[1758249797829,2.21639201,117220.0,117210.0,0.001]
[1758249798731,1.44223201,117220.0,117210.0,0.001]
[1758249798924,2.21635201,117220.0,117210.0,0.001]
[1758249799930,2.21631201,117220.0,117210.0,0.001]
[1758249800329,1.44223201,117220.0,117210.0,0.001]
[1758249800529,2.21631201,117220.0,117210.0,0.001]
[1758249802534,0.03654,117190.0,117180.0,0.0001]
[1758249802736,1.56153278,117190.0,117180.0,0.23]
[1758249803436,3.35897278,117190.0,117180.0,0.23]
[1758249803623,3.35897278,117190.0,117170.0,0.3609]
[1758249803828,0.78757278,117180.0,117170.0,0.80291]
[1758249804033,0.78757278,117180.0,117170.0,1.05281]
[1758249804235,0.78757278,117180.0,117170.0,0.80281]
[1758249805035,1.56157278,117180.0,117170.0,0.80281]
[1758249807030,1.56157278,117180.0,117170.0,1.05281]
[1758249813946,0.78757278,117180.0,117170.0,1.05281]
[1758249814138,1.56161278,117180.0,117170.0,1.05281]
[1758249819146,0.78757278,117180.0,117170.0,1.05281]
[1758249819444,1.56165278,117180.0,117170.0,0.80281]
[1758249820346,0.78757278,117180.0,117170.0,0.80281]
[1758249820646,1.56165278,117180.0,117170.0,0.80281]
[1758249833354,0.78757278,117180.0,117170.0,0.80281]
[1758249833548,1.56165278,117180.0,117170.0,0.80281]
[1758249848271,1.56165278,117180.0,117160.0,0.36094]
[1758249848474,0.78634278,117170.0,117160.0,0.76219]
[1758249848670,0.78634278,117170.0,117160.0,0.76209]
[1758249850277,1.56038278,117170.0,117160.0,0.76209]
[1758249852378,0.78634278,117170.0,117160.0,0.76209]
[1758249852579,1.56038278,117170.0,117160.0,0.76209]
[1758249857283,1.56038278,117170.0,117160.0,0.74084]
[1758249857586,1.56042278,117170.0,117160.0,0.74084]
[1758249857779,1.47731764,117170.0,117160.0,0.74084]
[1758249859987,0.80939,117170.0,117160.0,0.76209]
[1758249860287,1.47731764,117170.0,117160.0,0.76209]
[1758249862590,1.47731764,117170.0,117160.0,0.74084]
[1758249863691,1.47731764,117170.0,117160.0,0.42084]
[1758249869195,1.47731764,117170.0,117160.0,0.44403]
[1758249875000,0.70323764,117170.0,117160.0,0.44403]
[1758249875400,1.47731764,117170.0,117160.0,0.44403]
[1758249878302,1.47735764,117170.0,117160.0,0.44403]
[1758249880599,0.70323764,117170.0,117160.0,0.44403]
[1758249880798,1.47735764,117170.0,117160.0,0.44403]
[1758249884605,1.47735764,117170.0,117160.0,0.42084]
[1758249884902,1.47735764,117170.0,117160.0,0.44403]
[1758249887709,1.12975382,117170.0,117160.0,0.54726]
[1758249887910,1.12975382,117170.0,117160.0,0.92726]
[1758249888709,1.12975382,117170.0,117160.0,0.39726]
[1758249888917,1.12975382,117170.0,117160.0,0.46726]
[1758249893710,0.35563382,117170.0,117160.0,0.46726]
[1758249894014,1.12975382,117170.0,117160.0,0.46726]
[1758249894612,0.35563382,117170.0,117160.0,0.46726]
[1758249894814,1.12975382,117170.0,117160.0,0.46726]
[1758249895413,0.35563382,117170.0,117160.0,0.39726]
[1758249895615,1.12975382,117170.0,117160.0,0.82726]
[1758249897014,1.12975382,117170.0,117160.0,0.85726]
[1758249900320,0.79579,117170.0,117160.0,0.85726]
[1758249900511,1.12975382,117170.0,117160.0,0.85726]
[1758249901615,0.02024386,117180.0,117160.0,1.75122382]
[1758249901815,0.37574768,117180.0,117170.0,0.73048382]
[1758249902022,0.02014386,117180.0,117170.0,1.54048382]
[1758249902320,0.02014386,117180.0,117170.0,1.98287032]
[1758249902715,0.75238386,117180.0,117170.0,1.98287032]
[1758249903020,0.75238386,117180.0,117170.0,1.87578562]
[1758249903521,0.73224,117180.0,117170.0,1.98313846]
[1758249903821,0.0001,117190.0,117180.0,0.0128]
[1758249904025,0.35560382,117200.0,117190.0,0.03572]
[1758249904321,1.46446764,117200.0,117190.0,0.39652]
[1758249905318,1.13046382,117200.0,117190.0,1.08048382]
[1758249905719,1.13146382,117200.0,117190.0,1.08048382]
[1758249906421,1.13146382,117200.0,117190.0,0.39652]
[1758249906618,1.13146382,117200.0,117190.0,0.75652]
[1758249906824,1.13146382,117200.0,117190.0,0.76503042]
[1758249907224,1.13046382,117200.0,117190.0,0.76503042]
[1758249908318,1.13046382,117200.0,117190.0,1.09899424]
[1758249910121,0.35550382,117200.0,117190.0,1.09899424]
[1758249910428,2.13218382,117210.0,117190.0,1.78127141]
[1758249910625,2.13218382,117210.0,117200.0,0.39652]
[1758249910822,2.92818382,117210.0,117200.0,0.76652]
[1758249914223,2.92818382,117210.0,117200.0,0.75652]
[1758249916234,2.92818382,117210.0,117200.0,0.79652]
[1758249919224,2.92818382,117210.0,117200.0,0.73652]
[1758249919430,2.94203382,117210.0,117200.0,0.39652]
[1758249919828,3.35889047,117210.0,117200.0,0.39652]
[1758249923636,2.60807,117210.0,117200.0,0.39652]
[1758249923933,3.35889047,117210.0,117200.0,0.39652]
[1758249924736,3.35889047,117210.0,117200.0,0.29878]
[1758249931735,3.60889047,117210.0,117190.0,0.37778997]
[1758249931934,0.78744047,117200.0,117190.0,0.58004997]
[1758249932132,0.78744047,117200.0,117190.0,0.40004997]
[1758249937738,0.53716698,117200.0,117190.0,0.65032346]
[1758249937940,0.53716698,117200.0,117190.0,1.05032346]
[1758249938147,0.02323,117200.0,117190.0,1.30735695]
[1758249938448,1.02415349,117200.0,117190.0,1.30735695]
[1758249939248,0.25027349,117200.0,117190.0,1.30735695]
[1758249939441,0.02323,117200.0,117190.0,1.30735695]
[1758249939641,1.04738349,117200.0,117190.0,1.30735695]
[1758249940248,0.27350349,117200.0,117190.0,1.30735695]
[1758249940440,1.04738349,117200.0,117190.0,1.30735695]
[1758249942849,2.08186635,117210.0,117190.0,1.30735695]
[1758249943046,1.02415349,117200.0,117190.0,1.05708346]
[1758249943339,1.02415349,117200.0,117190.0,1.41788346]
[1758249944157,1.02415349,117200.0,117190.0,1.66815695]
[1758249944954,1.02415349,117200.0,117190.0,1.16760997]
[1758249945157,1.02415349,117200.0,117190.0,1.66815695]
[1758249945359,0.77388,117200.0,117190.0,1.74815695]
[1758249945552,1.02415349,117200.0,117190.0,1.74815695]
[1758249946547,1.02415349,117200.0,117190.0,1.66815695]
[1758249946751,0.77388,117200.0,117190.0,1.66815695]
[1758249946963,1.02415349,117200.0,117190.0,1.66815695]
[1758249949060,1.02415349,117200.0,117190.0,1.75815695]
[1758249949262,1.02415349,117200.0,117190.0,1.84344435]
[1758249949556,1.02415349,117200.0,117190.0,1.86550979]
[1758249953662,0.25027349,117200.0,117190.0,1.95079719]
[1758249953968,1.81774286,117210.0,117200.0,0.1202901]
[1758249954263,2.59148286,117210.0,117200.0,1.70898992]
[1758249954465,2.59148286,117210.0,117200.0,1.87398331]
[1758249954861,2.84175635,117210.0,117200.0,1.62370982]
[1758249956053,2.84175635,117210.0,117200.0,1.12316284]
[1758249956264,2.84175635,117210.0,117200.0,1.62370982]
[1758249957364,2.59148286,117210.0,117200.0,1.62370982]
[1758249957565,1.04363635,117210.0,117200.0,1.62370982]
[1758249959160,0.79336286,117210.0,117200.0,1.62370982]
[1758249959361,1.04363635,117210.0,117200.0,1.62370982]
[1758249964571,1.05708635,117210.0,117200.0,1.12316284]
[1758249964769,1.05708635,117210.0,117200.0,1.62370982]
[1758249965069,1.30735984,117210.0,117200.0,1.62370982]
[1758249965269,1.30735984,117210.0,117200.0,1.51635698]
[1758249967769,1.05708635,117210.0,117200.0,1.51635698]
[1758249969672,0.79336286,117210.0,117200.0,1.51635698]
[1758249969869,0.26979635,117210.0,117200.0,1.51635698]
[1758249970170,1.04359635,117210.0,117200.0,1.51635698]
[1758249973674,0.79332286,117210.0,117200.0,1.51635698]
[1758249973874,1.04359635,117210.0,117200.0,1.51635698]
[1758249974174,1.05704635,117210.0,117200.0,1.01581]
[1758249974473,1.05704635,117210.0,117200.0,1.51635698]
[1758249975373,1.05704635,117210.0,117200.0,1.62370982]
[1758249979378,1.05704635,117210.0,117200.0,1.26290982]
[1758249979578,1.05704635,117210.0,117200.0,1.98450982]
[1758249979777,1.14038885,117210.0,117200.0,1.81757883]
[1758249980479,1.14038885,117210.0,117200.0,1.96757883]
[1758249980880,1.14038885,117210.0,117200.0,2.12757883]
[1758249987677,0.01952286,117210.0,117200.0,2.12757883]
[1758249987881,0.79328286,117210.0,117200.0,2.54647492]
[1758249988082,0.01952286,117210.0,117200.0,2.54647492]
[1758249988282,0.0001,117220.0,117210.0,0.1211028]
[1758249988483,0.77376,117220.0,117210.0,1.66551879]
[1758249988783,0.77376,117220.0,117210.0,1.99913478]
[1758249988981,0.77376,117220.0,117210.0,2.10648762]
[1758249989283,0.77376,117220.0,117210.0,1.77287163]
[1758249993787,1.81139,117230.0,117210.0,1.77287163]
[1758249994086,1.83448,117230.0,117220.0,0.73024599]
[1758249994288,1.83438,117230.0,117220.0,1.24024599]
[1758249994587,2.59433,117230.0,117220.0,1.24024599]
[1758249994781,2.59433,117230.0,117220.0,1.24870476]
[1758249995688,2.60708,117230.0,117220.0,1.24870476]
[1758249995986,0.80964,117230.0,117220.0,1.24870476]
[1758249996587,1.14325599,117230.0,117220.0,1.24870476]
[1758249996788,1.14325599,117230.0,117220.0,1.31534263]
[1758249998583,1.14325599,117230.0,117220.0,1.67614263]
[1758250004490,1.14313599,117230.0,117220.0,1.67614263]
[1758250005385,0.36945599,117230.0,117220.0,1.67614263]
[1758250005590,1.14313599,117230.0,117220.0,1.67614263]
[1758250006486,0.03584,117230.0,117220.0,2.09502412]
[1758250006693,0.04302842,117240.0,117230.0,0.02979]
[1758250006894,0.04302842,117240.0,117230.0,1.60946429]
[1758250006895,0.81660842,117240.0,117230.0,1.60946429]
[1758250007785,0.81656842,117240.0,117230.0,1.60946429]
[1758250007985,0.79347842,117240.0,117230.0,1.94308028]
[1758250008385,0.79547842,117240.0,117230.0,1.60946429]
[1758250009185,0.79447842,117240.0,117230.0,1.60946429]
[1758250010596,0.79447842,117240.0,117230.0,1.2758483]
[1758250010790,0.79447842,117240.0,117230.0,1.60946429]
[1758250011797,0.79447842,117240.0,117230.0,1.2758483]
[1758250011998,0.79447842,117240.0,117230.0,1.60946429]
[1758250013096,0.79347842,117240.0,117230.0,1.60946429]
[1758250014392,0.79347842,117240.0,117230.0,1.2758483]
[1758250014698,0.77364,117240.0,117230.0,1.60946429]
[1758250016593,0.77364,117240.0,117230.0,1.2758483]
[1758250016797,0.77364,117240.0,117230.0,1.60946429]
[1758250020590,0.77364,117240.0,117230.0,1.2758483]
[1758250020796,0.77364,117240.0,117230.0,1.60946429]
[1758250030194,0.77364,117240.0,117230.0,1.94308028]
[1758250032601,0.0001,117250.0,117230.0,1.94308028]
[1758250032602,0.02247,117250.0,117240.0,0.120031]
[1758250032801,0.79617,117250.0,117240.0,2.02806298]
[1758250033792,0.79617,117250.0,117240.0,1.94281198]
[1758250034199,0.80917,117250.0,117240.0,1.27558]
[1758250034400,0.80917,117250.0,117240.0,1.94281198]
[1758250034902,0.80917,117250.0,117240.0,1.27558]
[1758250035102,0.80917,117250.0,117240.0,1.60919599]
[1758250035302,0.80917,117250.0,117240.0,1.27558]
[1758250035603,0.80917,117250.0,117240.0,1.60919599]
[1758250035904,0.80917,117250.0,117240.0,1.71654883]
[1758250038002,0.80917,117250.0,117240.0,2.05016482]
[1758250040905,0.80917,117250.0,117240.0,2.41096482]
[1758250041905,1.05920364,117250.0,117240.0,2.24380012]
[1758250045506,1.05920364,117250.0,117240.0,2.49383376]
[1758250047211,0.80917,117250.0,117240.0,2.49383376]
[1758250047410,1.05920364,117250.0,117240.0,2.57908466]
[1758250047611,0.79617,117250.0,117240.0,2.57908466]
[1758250047813,0.02237,117250.0,117240.0,2.57908466]
[1758250048000,1.80997,117260.0,117240.0,2.82908466]
[1758250048312,1.79722,117260.0,117250.0,1.23081462]
[1758250048508,1.79722,117260.0,117250.0,2.08081462]
[1758250048509,1.79712,117260.0,117250.0,2.08081462]
[1758250048814,2.57148,117260.0,117250.0,2.18816746]
[1758250053219,2.57148,117260.0,117250.0,2.08081462]
[1758250054220,0.77436,117260.0,117250.0,2.08081462]
[1758250055819,0.77436,117260.0,117250.0,2.44161462]
[1758250059121,0.0214,117260.0,117250.0,2.44161452]
[1758250059619,0.79548,117260.0,117250.0,2.44161452]
[1758250063531,0.79548,117260.0,117250.0,1.72001452]
[1758250063731,0.79548,117260.0,117250.0,2.44161452]
[1758250065431,0.79548,117260.0,117250.0,2.54896736]
[1758250067234,0.79548,117260.0,117250.0,1.79886644]
[1758250067430,0.79548,117260.0,117250.0,2.54896736]
[1758250068233,0.79548,117260.0,117250.0,2.44161452]
[1758250068737,0.0214,117260.0,117250.0,2.44161452]
[1758250068935,0.7952,117260.0,117250.0,2.44161452]
[1758250069435,0.7952,117260.0,117250.0,2.54896736]
[1758250072134,0.7952,117260.0,117250.0,2.46372376]
[1758250072436,1.05804364,117260.0,117250.0,2.20089012]
[1758250078049,1.05804364,117260.0,117250.0,2.09353728]
[1758250084951,1.05804364,117260.0,117250.0,1.59347]
[1758250085152,1.05804364,117260.0,117250.0,2.09353728]
[1758250085846,1.05804364,117260.0,117250.0,1.59347]
[1758250086044,1.05804364,117260.0,117250.0,2.09353728]
[1758250088650,0.80769,117260.0,117250.0,2.09353728]
[1758250088850,1.05772364,117260.0,117250.0,2.35637092]
[1758250093252,1.55775728,117260.0,117250.0,1.95096277]
[1758250093650,1.80779092,117260.0,117250.0,1.95096277]
[1758250094257,1.55775728,117260.0,117250.0,1.95096277]
[1758250095658,1.55775728,117260.0,117250.0,1.84350364]
[1758250096153,1.80779092,117260.0,117250.0,1.84350364]
[1758250096354,1.55775728,117260.0,117250.0,1.84350364]
[1758250096552,1.05769,117260.0,117250.0,1.84350364]
[1758250096758,1.55775728,117260.0,117250.0,1.84350364]
[1758250097259,1.55775728,117260.0,117250.0,1.59347]
[1758250097560,1.55775728,117260.0,117250.0,1.84350364]
[1758250098558,1.55775728,117260.0,117250.0,1.59347]
[1758250098758,1.55775728,117260.0,117250.0,1.84350364]
[1758250099560,0.78427728,117260.0,117250.0,1.84350364]
[1758250099862,1.55775728,117260.0,117250.0,1.84350364]
[1758250101762,1.39107999,117260.0,117250.0,1.59347]
[1758250103857,0.61759999,117260.0,117250.0,1.59347]
[1758250104164,1.39107999,117260.0,117250.0,1.92685999]
[1758250105262,0.61759999,117260.0,117250.0,1.92685999]
[1758250105462,1.39107999,117260.0,117250.0,1.92685999]
[1758250105761,1.39107999,117260.0,117250.0,2.03431912]
[1758250105963,0.61759999,117260.0,117250.0,2.03431912]
[1758250106364,1.39107999,117260.0,117250.0,2.03431912]
[1758250107463,0.61759999,117260.0,117250.0,2.03431912]
[1758250107667,1.39107999,117260.0,117250.0,1.67351912]
[1758250107865,1.39107999,117260.0,117250.0,2.03431912]
[1758250113471,1.39107999,117260.0,117250.0,1.70092913]
[1758250113670,1.39107999,117260.0,117250.0,2.03431912]
[1758250118577,1.39107999,117260.0,117250.0,1.70092913]
[1758250119381,1.14107999,117260.0,117250.0,1.70092913]
[1758250126483,0.36759999,117260.0,117250.0,1.70092913]
[1758250126682,1.14103999,117260.0,117250.0,1.70092913]
[1758250136886,1.14099999,117260.0,117250.0,1.70092913]
[1758250139289,0.36759999,117260.0,117250.0,1.70092913]
[1758250139494,1.14099999,117260.0,117250.0,1.70092913]
[1758250141986,0.80761,117260.0,117250.0,1.70092913]
[1758250142187,2.05777997,117260.0,117250.0,0.63745913]
[1758250142394,2.41857997,117260.0,117240.0,0.46825913]
[1758250142592,0.67956998,117250.0,117240.0,1.30825913]
[1758250142897,0.70232998,117250.0,117240.0,0.9708]
[1758250143784,0.70232998,117250.0,117240.0,0.99298]
[1758250144394,0.70232998,117250.0,117240.0,0.99198]
[1758250144790,0.70232998,117250.0,117240.0,0.99298]
[1758250145292,0.70232998,117250.0,117240.0,0.99198]
[1758250148394,0.70232998,117250.0,117240.0,0.9708]
[1758250149385,0.70232998,117250.0,117240.0,0.99198]
[1758250151799,1.14233999,117250.0,117240.0,0.99198]
[1758250152200,1.47572998,117250.0,117240.0,0.99198]
[1758250155794,1.14233999,117250.0,117240.0,0.99198]
[1758250157802,1.47572998,117250.0,117240.0,0.99198]
[1758250158602,1.47572998,117250.0,117240.0,0.94198]
[1758250159600,0.80895,117250.0,117240.0,0.94198]
[1758250159799,1.14233999,117250.0,117240.0,0.94198]
[1758250161904,1.55929389,117250.0,117240.0,0.94198]
[1758250166504,1.55929389,117250.0,117240.0,0.5208]
[1758250166804,1.5678441,117250.0,117240.0,0.5208]
[1758250170604,1.9286441,117250.0,117240.0,0.16]
[1758250173307,2.1786441,117250.0,117230.0,0.46825913]
[1758250173513,0.01328,117230.0,117220.0,0.10745913]
[1758250173709,1.58003423,117230.0,117220.0,0.68745913]
[1758250173910,1.58003423,117230.0,117220.0,0.58]
[1758250174108,1.58003423,117230.0,117220.0,0.25]
[1758250176417,0.03634,117220.0,117210.0,0.3608]
[1758250176618,0.78668389,117220.0,117210.0,0.66406]
[1758250176809,0.78668389,117220.0,117210.0,0.6408]
[1758250177012,0.78668389,117220.0,117210.0,0.28]
[1758250178816,1.56016389,117220.0,117210.0,0.28]
[1758250179416,1.56957297,117220.0,117210.0,0.28]
[1758250184918,0.79609297,117220.0,117210.0,0.28]
[1758250185121,1.56961297,117220.0,117210.0,0.28]
[1758250186613,1.56965297,117220.0,117210.0,0.28]
[1758250186823,0.79609297,117220.0,117210.0,0.28]
[1758250187008,1.56965297,117220.0,117210.0,0.28]
[1758250187720,0.79609297,117220.0,117210.0,0.28]
[1758250187929,1.56965297,117220.0,117210.0,0.28]
[1758250188714,0.79609297,117220.0,117210.0,0.28]
[1758250189016,1.56965297,117220.0,117210.0,0.28]
[1758250190518,0.79609297,117220.0,117210.0,0.28]
[1758250190719,1.56965297,117220.0,117210.0,0.28]
[1758250191413,0.79609297,117220.0,117210.0,0.28]
[1758250191617,1.56965297,117220.0,117210.0,0.28]
[1758250197320,0.79609297,117220.0,117210.0,0.28]
[1758250197722,1.56965297,117220.0,117210.0,0.28]
[1758250200530,0.79609297,117220.0,117210.0,0.28]
[1758250200829,1.56965297,117220.0,117210.0,0.28]
[1758250201929,0.79609297,117220.0,117210.0,0.28]
[1758250202128,1.56965297,117220.0,117210.0,0.28]
[1758250211632,0.79609297,117220.0,117210.0,0.28]
[1758250211832,1.56965297,117220.0,117210.0,0.28]
[1758250214137,0.79609297,117220.0,117210.0,0.28]
[1758250214338,1.56965297,117220.0,117210.0,0.28]
[1758250223742,1.82043023,117220.0,117210.0,0.28]
[1758250226746,1.82039023,117220.0,117210.0,0.30266]
[1758250226941,0.81926908,117220.0,117210.0,0.30266]
[1758250227140,1.48668318,117220.0,117210.0,0.30266]
[1758250230447,0.71316318,117220.0,117210.0,0.30266]
[1758250230647,1.48664318,117220.0,117210.0,0.30266]
[1758250232446,0.71316318,117220.0,117210.0,0.30266]
[1758250232642,1.48664318,117220.0,117210.0,0.30266]
[1758250232952,1.48664318,117220.0,117210.0,0.28]
[1758250233154,1.48664318,117220.0,117210.0,0.30266]
[1758250235055,0.04574908,117220.0,117210.0,0.30266]
[1758250235249,1.15293613,117220.0,117210.0,0.30266]
[1758250235454,1.48664318,117220.0,117210.0,0.30266]
[1758250237056,1.48664318,117220.0,117210.0,0.28]
[1758250237354,1.48664318,117220.0,117210.0,0.30266]
[1758250247957,0.71316318,117220.0,117210.0,0.30266]
[1758250248165,1.4781941,117220.0,117210.0,0.30266]
[1758250252464,1.4781941,117220.0,117210.0,0.28]
[1758250252766,1.4781941,117220.0,117210.0,0.30205]
[1758250254871,1.48668365,117220.0,117210.0,0.30205]
[1758250260375,0.7047541,117220.0,117210.0,0.30205]
[1758250260676,1.4781941,117220.0,117210.0,0.30205]
[1758250263977,0.7047541,117220.0,117210.0,0.30205]
[1758250264180,1.4781941,117220.0,117210.0,0.30205]
[1758250265182,1.81190115,117220.0,117210.0,0.28]
[1758250267977,1.4781941,117220.0,117210.0,0.28]
[1758250269280,0.7047541,117220.0,117210.0,0.28]
[1758250269479,1.4781941,117220.0,117210.0,0.30271]
[1758250269677,1.14448705,117220.0,117210.0,0.66351]
[1758250269884,1.4781941,117220.0,117210.0,0.66351]
[1758250270475,0.7047541,117220.0,117210.0,0.66351]
[1758250270674,1.4781941,117220.0,117210.0,0.66351]
[1758250272889,0.7047541,117220.0,117210.0,0.66351]
[1758250273087,1.4781941,117220.0,117210.0,0.66351]
[1758250276178,0.81078,117220.0,117210.0,0.66351]
[1758250276378,0.37104705,117220.0,117210.0,1.46721705]
[1758250276585,1.14444705,117220.0,117210.0,1.46721705]
[1758250276785,1.14444705,117220.0,117210.0,1.58747618]
[1758250277292,1.14444705,117220.0,117210.0,1.48001705]
[1758250277791,1.14444705,117220.0,117210.0,1.14631]
[1758250277984,1.14444705,117220.0,117210.0,1.13351]
[1758250280392,1.14344705,117220.0,117210.0,1.13351]
[1758250283799,1.31012006,117220.0,117210.0,1.38370003]
[1758250284798,0.80974,117220.0,117210.0,1.38370003]
[1758250285096,1.31012006,117220.0,117210.0,1.38370003]
[1758250286701,1.31012006,117220.0,117210.0,1.13351]
[1758250286896,1.31012006,117220.0,117210.0,1.38370003]
[1758250287898,1.31012006,117220.0,117210.0,1.13351]
[1758250288098,1.56031009,117220.0,117210.0,1.13351]
[1758250290503,1.56031009,117220.0,117210.0,0.8608]
[1758250292402,0.78691009,117220.0,117210.0,0.88194]
[1758250292602,1.56027009,117220.0,117210.0,0.88194]
[1758250300309,1.56027009,117220.0,117210.0,0.8608]
[1758250304912,1.56027009,117220.0,117210.0,0.88194]
[1758250305309,1.56027009,117220.0,117210.0,0.8608]
[1758250307818,1.56027009,117220.0,117210.0,0.88194]
[1758250318425,1.56027009,117220.0,117210.0,0.8608]
[1758250318630,0.03494,117210.0,117200.0,0.10745913]
[1758250318819,1.91963009,117210.0,117200.0,0.11]
[1758250319427,1.14631009,117210.0,117200.0,0.11]
[1758250319626,1.91963009,117210.0,117200.0,0.11]
[1758250319834,1.91963009,117210.0,117200.0,0.111]
[1758250321138,1.14631009,117210.0,117200.0,0.111]
[1758250321338,1.91963009,117210.0,117200.0,0.111]
[1758250321529,1.91963009,117210.0,117200.0,0.11]
[1758250321925,1.14631009,117210.0,117200.0,0.11]
[1758250322124,1.91963009,117210.0,117200.0,0.11]
[1758250324732,0.03494,117200.0,117190.0,0.3608]
[1758250324931,0.78551009,117200.0,117190.0,0.46]
[1758250325133,1.14631009,117200.0,117190.0,0.46]
[1758250325533,1.14631009,117200.0,117190.0,0.14]
[1758250325934,1.14631009,117200.0,117190.0,0.141]
[1758250326136,1.14631009,117200.0,117190.0,0.142]
[1758250326636,1.14631009,117200.0,117190.0,0.141]
[1758250327742,1.14631009,117200.0,117190.0,0.14]
[1758250328944,1.15479068,117200.0,117190.0,0.14]
[1758250330143,1.15479068,117200.0,117180.0,0.3609]
[1758250330343,1.55899009,117190.0,117180.0,0.3701]
[1758250330545,1.57866279,117190.0,117180.0,0.37]
[1758250331144,0.01385,117180.0,117170.0,0.38234]
[1758250331449,0.78551009,117180.0,117170.0,0.92224]
[1758250331838,1.55907009,117180.0,117170.0,0.92224]
[1758250333147,1.55907009,117180.0,117170.0,0.92324]
[1758250334549,1.55907009,117180.0,117170.0,0.92424]
[1758250334750,0.78551009,117180.0,117170.0,0.92424]
[1758250334950,1.55903009,117180.0,117170.0,0.92424]
[1758250335250,1.55903009,117180.0,117170.0,0.92324]
[1758250335949,1.55903009,117180.0,117170.0,0.92224]
[1758250336440,0.78551009,117180.0,117170.0,0.92224]
[1758250336642,1.55899009,117180.0,117170.0,0.92224]
[1758250338450,0.78551009,117180.0,117170.0,0.56144]